fUST/lending_fUST_20250921
["ID","MTS","AMOUNT","RATE_DAILY","PERIOD"]
[386659572,1758453056320,-504.84368585,0.00021895,2]
[386659573,1758453056330,-1000.0,0.00021895,2]
[386659574,1758453056339,-1000.0,0.00021895,2]
[386659575,1758453056349,-1000.0,0.00021895,2]
[386659576,1758453056358,-506.66059614,0.00021895,2]
[386659577,1758453056368,-1000.0,0.00021895,2]
[386659578,1758453056377,-1087.420753,0.00021895,2]
[386659579,1758453056386,-1000.0,0.00021895,2]
[386659580,1758453056395,-1000.0,0.00021895,2]
[386659581,1758453056405,-1000.0,0.00021895,2]
[386659582,1758453056415,-1000.0,0.00021895,2]
[386659583,1758453056424,-1000.0,0.00021895,2]
[386659584,1758453056433,-1000.0,0.000219,2]
[386659585,1758453056443,-480.0,0.00021917,2]
[386659586,1758453056452,-480.0,0.00021917,2]
[386659587,1758453056463,-480.0,0.00021917,2]
[386659588,1758453056472,-480.0,0.00021917,2]
[386659589,1758453056482,-480.0,0.00021917,2]
[386659590,1758453056492,-7673.89856171,0.00021917,2]
[386659591,1758453056783,-2051.9,0.00021369,2]
[386659592,1758453056792,-2051.9,0.00021643,2]
[386659593,1758453056803,-493.48143829,0.00021917,2]
[386659594,1758453056812,-500.0,0.00021917,2]
[386659595,1758453056821,-500.0,0.00021917,2]
[386659596,1758453056831,-500.0,0.00021917,2]
[386659597,1758453056840,-500.0,0.00021917,2]
[386659598,1758453056849,-500.0,0.00021917,2]
[386659599,1758453056859,-507.87514399,0.00021917,2]
[386659600,1758453056869,-480.0,0.00021917,2]
[386659601,1758453056879,-480.0,0.00021917,2]
[386659602,1758453056888,-480.0,0.00021917,2]
[386659603,1758453056898,-297.64148973,0.00021917,2]
[386659604,1758453056907,-555.74,0.00021917,2]
[386659605,1758453056917,-1597.06,0.00021917,2]
[386659606,1758453056931,-564.62008454,0.00021917,2]
[386659607,1758453056941,-2598.26205399,0.00021917,2]
[386659608,1758453056953,-452.49794601,0.00021917,2]
[386659609,1758453056963,-964.98,0.00021917,2]
[386659610,1758453056974,-968.95,0.00021917,2]
[386659611,1758453056983,-480.0,0.00021917,2]
[386659612,1758453056993,-480.0,0.00021917,2]
[386659613,1758453057005,-878.63,0.00021917,2]
[386659614,1758453057014,-151.0,0.00021917,2]
[386659615,1758453057024,-151.0,0.00021917,2]
[386659616,1758453057034,-153.241372,0.00021917,2]
[386659617,1758453057043,-151.0,0.00021917,2]
[386659618,1758453057052,-151.0,0.00021917,2]
[386659619,1758453057061,-151.0,0.00021917,2]
[386659620,1758453057070,-1103.49,0.00021917,2]
[386659621,1758453057079,-558.36,0.00021917,2]
[386659622,1758453057089,-789.27,0.00021917,2]
[386659623,1758453057098,-480.0,0.00021917,2]
[386659624,1758453057107,-480.0,0.00021917,2]
[386659625,1758453057118,-480.0,0.00021917,2]
[386659626,1758453057128,-480.0,0.00021917,2]
[386659627,1758453057137,-480.0,0.00021917,2]
[386659628,1758453057146,-480.0,0.00021917,2]
[386659629,1758453057156,-480.0,0.00021917,2]
[386659630,1758453057165,-480.0,0.00021917,2]
[386659631,1758453057175,-480.0,0.00021917,2]
[386659632,1758453057184,-480.0,0.00021917,2]
[386659633,1758453057194,-490.48910028,0.00021917,2]
[386659634,1758453057203,-480.0,0.00021917,2]
[386659635,1758453057212,-259.858841,0.00021917,2]
[386659636,1758453057221,-480.0,0.00021917,2]
[386659637,1758453057232,-1887.16,0.00021917,2]
[386659638,1758453057241,-480.0,0.00021917,2]
[386659639,1758453057251,-480.0,0.00021917,2]
[386659640,1758453057261,-480.0,0.00021917,2]
[386659641,1758453057270,-787.45,0.00021917,2]
[386659642,1758453057280,-480.0,0.00021917,2]
[386659643,1758453057289,-480.0,0.00021917,2]
[386659644,1758453057299,-480.0,0.00021917,2]
[386659645,1758453057308,-1368.44,0.00021917,2]
[386659646,1758453057318,-480.0,0.00021917,2]
[386659647,1758453057327,-480.0,0.00021917,2]
[386659648,1758453057337,-382.02422597,0.00021917,2]
[386659649,1758453057346,-480.0,0.00021917,2]
[386659650,1758453057356,-480.0,0.00021917,2]
[386659651,1758453057366,-608.18,0.00021917,2]
[386659652,1758453057375,-480.0,0.00021917,2]
[386659653,1758453057385,-480.0,0.00021917,2]
[386659654,1758453057394,-480.0,0.00021917,2]
[386659655,1758453057404,-855.51,0.00021917,2]
[386659656,1758453057414,-912.57,0.00021917,2]
[386659657,1758453057424,-971.61,0.00021917,2]
[386659658,1758453057433,-886.06,0.00021917,2]
[386659659,1758453057443,-480.0,0.00021917,2]
[386659660,1758453057453,-967.35,0.00021917,2]
[386659661,1758453057462,-480.0,0.00021917,2]
[386659662,1758453057472,-480.0,0.00021917,2]
[386659663,1758453057482,-356.20244263,0.00021917,2]
[386659664,1758453057491,-544.25,0.00021917,2]
[386659665,1758453057501,-480.0,0.00021917,2]
[386659666,1758453057511,-2051.9,0.00021917,2]
[386659667,1758453057520,-504.8841743,0.00021939,2]
[386659668,1758453057530,-1500.0,0.00021939,2]
[386659669,1758453057539,-1000.0,0.00021939,2]
[386659670,1758453057549,-1500.0,0.00021939,2]
[386659671,1758453057559,-1500.0,0.00021939,2]
[386659672,1758453057568,-201.52472,0.00021939,2]
[386659673,1758453057578,-1500.0,0.00021939,2]
[386659674,1758453057588,-1200.83885379,0.00021939,2]
[386659675,1758453057597,-1025.82421191,0.00021943,2]
[386659676,1758453057606,-1500.0,0.00021946,2]
[386659677,1758453057615,-1504.8872314,0.00021946,2]
[386659678,1758453057626,-1007.48407643,0.00021946,2]
[386659679,1758453057635,-889.85371098,0.00021946,2]
[386659680,1758453057645,-1500.0,0.00021946,2]
[386659681,1758453057654,-471.0,0.00022,2]
[386659682,1758453057664,-180.0,0.00022,2]
[386659683,1758453057673,-5953.59,0.00022,7]
[386659684,1758453057684,-159.0,0.00022,2]
[386659685,1758453057696,-553.0,0.00022041,2]
[386659686,1758453057706,-12295.41489781,0.00022044,2]
[386659687,1758453057715,-151.0,0.00022072,7]
[386659688,1758453057724,-151.0,0.00022072,7]
[386659689,1758453057734,-151.0,0.00022072,7]
[386659690,1758453057744,-399.784695,0.00022072,7]
[386659691,1758453057753,-399.784695,0.00022072,7]
[386659692,1758453057763,-399.784695,0.00022072,7]
[386659693,1758453057772,-1500.0,0.00022072,2]
[386659694,1758453057781,-150.0,0.0002215,2]
[386659695,1758453057791,-560.0,0.00022167,2]
[386659696,1758453057800,-1000.0,0.00022171,2]
[386659697,1758453057810,-307.33233412,0.00022187,2]
[386659698,1758453057819,-325.92532273,0.0002219,2]
[386659699,1758453057829,-363.19331256,0.00022191,2]
[386659700,1758453057839,-1451.32047697,0.00022191,2]
[386659701,1758453057848,-285.2369166,0.00022191,2]
[386659702,1758453057858,-714.84122237,0.00022191,2]
[386659703,1758453057867,-786.8000461,0.00022191,2]
[386659704,1758453057877,-3144.05298422,0.00022191,2]
[386659705,1758453057887,-480.0,0.00022191,2]
[386659706,1758453057896,-480.0,0.00022191,2]
[386659707,1758453057905,-480.0,0.00022191,2]
[386659708,1758453057915,-480.0,0.00022191,2]
[386659709,1758453057924,-8167.38,0.00022191,2]
[386659710,1758453057933,-480.0,0.00022191,2]
[386659711,1758453057943,-480.0,0.00022191,2]
[386659712,1758453057953,-480.0,0.00022191,2]
[386659713,1758453057963,-555.74,0.00022191,2]
[386659714,1758453057972,-1597.06,0.00022191,2]
[386659715,1758453057981,-3050.76,0.00022191,2]
[386659716,1758453057991,-964.98,0.00022191,2]
[386659717,1758453058000,-968.95,0.00022191,2]
[386659718,1758453058010,-480.0,0.00022191,2]
[386659719,1758453058019,-211.46,0.00022191,2]
[386659720,1758453058028,-878.63,0.00022191,2]
[386659721,1758453058038,-1103.49,0.00022191,2]
[386659722,1758453058048,-558.36,0.00022191,2]
[386659723,1758453058057,-789.27,0.00022191,2]
[386659724,1758453058067,-487.66895162,0.00022191,2]
[386659725,1758453058077,-168.50406977,0.00022191,2]
[386659726,1758453058087,-1887.16,0.00022191,2]
[386659727,1758453058098,-556.13376455,0.00022191,2]
[386659728,1758453058108,-480.0,0.00022191,2]
[386659729,1758453058119,-480.0,0.00022191,2]
[386659730,1758453058128,-480.0,0.00022191,2]
[386659731,1758453058138,-787.45,0.00022191,2]
[386659732,1758453058147,-480.0,0.00022191,2]
[386659733,1758453058157,-480.0,0.00022191,2]
[386659734,1758453058167,-480.0,0.00022191,2]
[386659735,1758453058177,-1368.44,0.00022191,2]
[386659736,1758453058186,-480.0,0.00022191,2]
[386659737,1758453058196,-480.0,0.00022191,2]
[386659738,1758453058205,-480.0,0.00022191,2]
[386659739,1758453058216,-480.0,0.00022191,2]
[386659740,1758453058226,-608.18,0.00022191,2]
[386659741,1758453058236,-480.0,0.00022191,2]
[386659742,1758453058246,-480.0,0.00022191,2]
[386659743,1758453058255,-855.51,0.00022191,2]
[386659744,1758453058265,-912.57,0.00022191,2]
[386659745,1758453058275,-971.61,0.00022191,2]
[386659746,1758453058284,-886.06,0.00022191,2]
[386659747,1758453058293,-480.0,0.00022191,2]
[386659748,1758453058303,-967.35,0.00022191,2]
[386659749,1758453058312,-480.0,0.00022191,2]
[386659750,1758453058322,-480.0,0.00022191,2]
[386659751,1758453058332,-544.25,0.00022191,2]
[386659752,1758453058342,-204.82434943,0.00022191,2]
[386659753,1758453058352,-2051.9,0.00022191,2]
[386659754,1758453058362,-2000.0,0.000222,2]
[386659755,1758453058372,-2000.0,0.000222,2]
[386659756,1758453058382,-2000.0,0.000222,2]
[386659757,1758453058391,-2000.0,0.000222,2]
[386659758,1758453058401,-3000.0,0.00022212,2]
[386659759,1758453058411,-553.0,0.00022256,2]
[386659760,1758453058421,-151.0,0.00022318,7]
[386659761,1758453058430,-151.0,0.00022318,7]
[386659762,1758453058440,-151.0,0.00022318,7]
[386659763,1758453058450,-151.0,0.00022318,7]
[386659764,1758453058460,-151.0,0.00022318,7]
[386659765,1758453058469,-16121.68,0.00022319,2]
[386659766,1758453058479,-159.0659469,0.00022415,2]
[386659767,1758453058488,-553.0,0.00022427,2]
[386659768,1758453058498,-1051.07059046,0.00022427,2]
[386659769,1758453058508,-508.12953831,0.00022435,2]
[386659770,1758453058518,-947.9875069,0.00022443,2]
[386659771,1758453058528,-1500.0,0.00022443,2]
[386659772,1758453058537,-1373.49166916,0.00022443,2]
[386659773,1758453058547,-1500.0,0.00022443,2]
[386659774,1758453058556,-1500.0,0.00022443,2]
[386659775,1758453058566,-1500.0,0.00022443,2]
[386659776,1758453058576,-1006.7026766,0.00022443,2]
[386659777,1758453058586,-1549.91780046,0.00022443,2]
[386659778,1758453058596,-553.0,0.00022451,2]
[386659779,1758453058606,-250.0,0.00022455,2]
[386659780,1758453058616,-480.0,0.00022465,2]
[386659781,1758453058627,-380.32610051,0.00022465,2]
[386659782,1758453058636,-565.20306504,0.00022465,2]
[386659783,1758453058646,-586.44176533,0.00022465,2]
[386659784,1758453058655,-8167.38,0.00022465,2]
[386659785,1758453058665,-480.0,0.00022465,2]
[386659786,1758453058675,-201.88072842,0.00022465,2]
[386659787,1758453058685,-480.0,0.00022465,2]
[386659788,1758453058695,-555.74,0.00022465,2]
[386659789,1758453058705,-1597.06,0.00022465,2]
[386659790,1758453058715,-3050.76,0.00022465,2]
[386659791,1758453058724,-964.98,0.00022465,2]
[386659792,1758453058734,-968.95,0.00022465,2]
[386659793,1758453058744,-480.0,0.00022465,2]
[386659794,1758453058755,-878.63,0.00022465,2]
[386659795,1758453058765,-1103.49,0.00022465,2]
[386659796,1758453058775,-558.36,0.00022465,2]
[386659797,1758453058785,-789.27,0.00022465,2]
[386659798,1758453058795,-1887.16,0.00022465,2]
[386659799,1758453058804,-480.0,0.00022465,2]
[386659800,1758453058814,-187.52192329,0.00022465,2]
[386659801,1758453058823,-480.0,0.00022465,2]
[386659802,1758453058833,-787.45,0.00022465,2]
[386659803,1758453058842,-480.0,0.00022465,2]
[386659804,1758453058852,-341.28615264,0.00022465,2]
[386659805,1758453058861,-480.0,0.00022465,2]
[386659806,1758453058871,-1368.44,0.00022465,2]
[386659807,1758453058881,-480.0,0.00022465,2]
[386659808,1758453058890,-480.0,0.00022465,2]
[386659809,1758453058900,-480.0,0.00022465,2]
[386659810,1758453058910,-480.0,0.00022465,2]
[386659811,1758453058919,-608.18,0.00022465,2]
[386659812,1758453058934,-186.82874435,0.00022465,2]
[386659813,1758453058944,-480.0,0.00022465,2]
[386659814,1758453058953,-855.51,0.00022465,2]
[386659815,1758453058963,-912.57,0.00022465,2]
[386659816,1758453058975,-971.61,0.00022465,2]
[386659817,1758453058984,-886.06,0.00022465,2]
[386659818,1758453058994,-480.0,0.00022465,2]
[386659819,1758453059004,-967.35,0.00022465,2]
[386659820,1758453059013,-480.0,0.00022465,2]
[386659821,1758453059024,-480.0,0.00022465,2]
[386659822,1758453059035,-544.25,0.00022465,2]
[386659823,1758453059045,-2051.9,0.00022465,2]
[386659824,1758453059055,-2000.0,0.00022487,2]
[386659825,1758453059065,-2000.0,0.00022487,2]
[386659826,1758453059076,-2099.42384492,0.00022487,2]
[386659827,1758453059086,-761.85483045,0.00022487,2]
[386659828,1758453059097,-553.0,0.00022488,2]
[386659829,1758453059107,-657.3834965,0.00022494,2]
[386659830,1758453059117,-2000.0,0.00022494,2]
[386659831,1758453059127,-553.0,0.00022499,2]
[386659832,1758453059136,-4000.0,0.000225,4]
[386659833,1758453059146,-151.0,0.00022541,7]
[386659834,1758453059156,-151.0,0.00022541,7]
[386659835,1758453059166,-153.285165,0.00022541,7]
[386659836,1758453059175,-151.0,0.00022541,7]
[386659837,1758453059186,-151.0,0.00022541,7]
[386659838,1758453059197,-151.0,0.00022541,7]
[386659839,1758453059207,-151.0,0.00022541,7]
[386659840,1758453059218,-5000.0,0.00022541,2]
[386659841,1758453059228,-160.0,0.0002255,7]
[386659842,1758453059238,-417.15472785,0.0002255,7]
[386659843,1758453059248,-164.98963149,0.00022575,2]
[386659844,1758453059258,-2109.0059365,0.0002262,2]
[386659845,1758453059268,-553.0,0.00022659,2]
[386659846,1758453059278,-553.0,0.00022666,2]
[386659847,1758453059289,-300.0,0.00022698,2]
[386659848,1758453059299,-660.0,0.00022715,2]
[386659849,1758453059309,-1500.0,0.00022719,2]
[386659850,1758453059319,-1441.15330472,0.00022736,2]
[386659851,1758453059330,-151.0,0.00022736,7]
[386659852,1758453059340,-373.155315,0.00022736,7]
[386659853,1758453059350,-373.155315,0.00022736,7]
[386659854,1758453059362,-373.155315,0.00022736,7]
[386659855,1758453059372,-373.155315,0.00022736,7]
[386659856,1758453059382,-480.0,0.00022739,2]
[386659857,1758453059392,-8167.38,0.00022739,2]
[386659858,1758453059402,-151.0,0.00022739,7]
[386659859,1758453059413,-151.0,0.00022739,7]
[386659860,1758453059423,-151.0,0.00022739,7]
[386659861,1758453059433,-151.0,0.00022739,7]
[386659862,1758453059444,-151.0,0.00022739,7]
[386659863,1758453059454,-480.0,0.00022739,2]
[386659864,1758453059464,-480.0,0.00022739,2]
[386659865,1758453059474,-555.74,0.00022739,2]
[386659866,1758453059484,-1597.06,0.00022739,2]
[386659867,1758453059495,-3050.76,0.00022739,2]
[386659868,1758453059505,-964.98,0.00022739,2]
[386659869,1758453059515,-968.95,0.00022739,2]
[386659870,1758453059525,-480.0,0.00022739,2]
[386659871,1758453059535,-878.63,0.00022739,2]
[386659872,1758453059546,-1103.49,0.00022739,2]
[386659873,1758453059556,-558.36,0.00022739,2]
[386659874,1758453059566,-789.27,0.00022739,2]
[386659875,1758453059575,-1887.16,0.00022739,2]
[386659876,1758453059585,-480.0,0.00022739,2]
[386659877,1758453059594,-448.40833389,0.00022739,2]
[386659878,1758453059604,-787.45,0.00022739,2]
[386659879,1758453059613,-480.0,0.00022739,2]
[386659880,1758453059623,-521.16472819,0.00022739,2]
[386659881,1758453059634,-1368.44,0.00022739,2]
[386659882,1758453059644,-480.0,0.00022739,2]
[386659883,1758453059655,-480.0,0.00022739,2]
[386659884,1758453059665,-480.0,0.00022739,2]
[386659885,1758453059674,-480.0,0.00022739,2]
[386659886,1758453059684,-608.18,0.00022739,2]
[386659887,1758453059695,-480.0,0.00022739,2]
[386659888,1758453059705,-855.51,0.00022739,2]
[386659889,1758453059715,-912.57,0.00022739,2]
[386659890,1758453059725,-971.61,0.00022739,2]
[386659891,1758453059735,-886.06,0.00022739,2]
[386659892,1758453059744,-480.0,0.00022739,2]
[386659893,1758453059755,-967.35,0.00022739,2]
[386659894,1758453059766,-480.0,0.00022739,2]
[386659895,1758453059776,-480.0,0.00022739,2]
[386659896,1758453059786,-544.25,0.00022739,2]
[386659897,1758453059795,-2051.9,0.00022739,2]
[386659898,1758453059805,-3200.50989012,0.0002276,2]
[386659899,1758453059815,-587.0,0.00022765,2]
[386659900,1758453059824,-553.0,0.00022785,2]
[386659901,1758453059834,-553.0,0.00022804,2]
[386659902,1758453059843,-553.0,0.00022807,2]
[386659903,1758453059853,-553.0,0.00022818,2]
[386659904,1758453059863,-1300.0,0.00022904,2]
[386659905,1758453059873,-450.91144236,0.00022985,2]
[386659906,1758453076528,-321.51423172,0.00019078,2]
[386659908,1758453090677,1000.0,0.00018457,2]
[386659909,1758453150928,305.0,0.00019,2]
[386659910,1758453271820,1836.556875,0.00018233,2]
[386660486,1758453377397,-2179.86167895,0.00019078,2]
[386660487,1758453377423,-1200.0,0.00019172,2]
[386660488,1758453377447,-500.0,0.00019173,2]
[386660489,1758453377471,-500.0,0.00019173,2]
[386660490,1758453377496,-500.0,0.00019173,2]
[386660491,1758453377519,-502.14363543,0.00019173,2]
[386660492,1758453377544,-500.0,0.00019173,2]
[386660493,1758453377709,-500.0,0.00019173,2]
[386660494,1758453377733,-515.20291988,0.00019173,2]
[386660495,1758453377758,-500.0,0.00019173,2]
[386660496,1758453377783,-188.4822781,0.00019177,2]
[386660497,1758453377811,-500.0,0.00019177,2]
[386660498,1758453377835,-426.61979178,0.00019177,2]
[386660499,1758453377861,-500.0,0.00019177,2]
[386660500,1758453377885,-389.82512012,0.00019177,2]
[386660501,1758453377911,-500.0,0.00019177,2]
[386660502,1758453377936,-271.74283953,0.00019177,2]
[386660503,1758453377965,-500.0,0.00019177,2]
[386660504,1758453377991,-466.82925322,0.00019177,2]
[386660505,1758453378016,-237.42323852,0.00019177,2]
[386660506,1758453378044,-166.19626696,0.00019177,2]
[386660507,1758453378068,-418.85625778,0.00019177,2]
[386660508,1758453378092,-480.0,0.00019178,2]
[386660509,1758453378117,-480.0,0.00019178,2]
[386660510,1758453378141,-480.0,0.00019178,2]
[386660511,1758453378166,-480.0,0.00019178,2]
[386660512,1758453378190,-480.0,0.00019178,2]
[386660513,1758453378215,-480.0,0.00019178,2]
[386660514,1758453378240,-480.0,0.00019178,2]
[386660515,1758453378263,-480.0,0.00019178,2]
[386660516,1758453378287,-480.0,0.00019178,2]
[386660517,1758453378310,-465.98992994,0.00019178,2]
[386660518,1758453378334,-480.0,0.00019178,2]
[386660519,1758453378358,-480.0,0.00019178,2]
[386660520,1758453378381,-486.57081854,0.00019178,2]
[386660521,1758453378405,-480.0,0.00019178,2]
[386660522,1758453378429,-480.0,0.00019178,2]
[386660523,1758453378453,-480.0,0.00019178,2]
[386660524,1758453378477,-480.0,0.00019178,2]
[386660525,1758453378501,-480.0,0.00019178,2]
[386660526,1758453378526,-480.0,0.00019178,2]
[386660527,1758453378552,-480.0,0.00019178,2]
[386660528,1758453378576,-480.0,0.00019178,2]
[386660529,1758453378602,-480.0,0.00019178,2]
[386660530,1758453378626,-480.0,0.00019178,2]
[386660531,1758453378649,-480.0,0.00019178,2]
[386660532,1758453378673,-480.0,0.00019178,2]
[386660533,1758453378696,-486.18422419,0.00019178,2]
[386660534,1758453378720,-520.0,0.00019178,3]
[386660535,1758453378748,-1271.15,0.00019178,2]
[386660536,1758453378773,-480.0,0.00019178,2]
[386660537,1758453378798,-480.0,0.00019178,2]
[386660538,1758453378822,-480.0,0.00019178,2]
[386660539,1758453378848,-480.0,0.00019178,2]
[386660540,1758453378872,-404.24742074,0.00019178,2]
[386660541,1758453378897,-480.0,0.00019178,2]
[386660542,1758453378923,-480.0,0.00019178,2]
[386660543,1758453378947,-480.0,0.00019178,2]
[386660544,1758453378971,-480.0,0.00019178,2]
[386660545,1758453378995,-433.95438096,0.00019178,2]
[386660546,1758453379023,-480.0,0.00019178,2]
[386660547,1758453379051,-480.0,0.00019178,2]
[386660548,1758453379074,-485.19929064,0.00019178,2]
[386660549,1758453379100,-480.0,0.00019178,2]
[386660550,1758453379125,-200.0,0.00019178,2]
[386660551,1758453379150,-480.0,0.00019178,2]
[386660552,1758453379174,-480.0,0.00019178,2]
[386660553,1758453379199,-480.0,0.00019178,2]
[386660554,1758453379224,-480.0,0.00019178,2]
[386660555,1758453379250,-480.0,0.00019178,2]
[386660556,1758453379274,-480.0,0.00019178,2]
[386660557,1758453379298,-480.0,0.00019178,2]
[386660558,1758453379322,-758.82,0.00019178,2]
[386660559,1758453379347,-480.0,0.00019178,2]
[386660560,1758453379374,-480.0,0.00019178,2]
[386660561,1758453379400,-480.0,0.00019178,2]
[386660562,1758453379425,-480.0,0.00019178,2]
[386660563,1758453379448,-480.0,0.00019178,2]
[386660564,1758453379473,-480.0,0.00019178,2]
[386660565,1758453379498,-480.0,0.00019178,2]
[386660566,1758453379522,-399.5545657,0.00019178,2]
[386660567,1758453379546,-480.0,0.00019178,2]
[386660568,1758453379571,-480.0,0.00019178,2]
[386660569,1758453379595,-480.0,0.00019178,2]
[386660570,1758453379619,-480.0,0.00019178,2]
[386660571,1758453379643,-480.0,0.00019178,2]
[386660572,1758453379666,-480.0,0.00019178,2]
[386660573,1758453379691,-839.61,0.00019178,2]
[386660574,1758453379715,-480.0,0.00019178,2]
[386660575,1758453379740,-325.48431096,0.00019178,2]
[386660576,1758453379763,-480.0,0.00019178,2]
[386660577,1758453379788,-470.11623041,0.00019178,2]
[386660578,1758453379812,-480.0,0.00019178,2]
[386660579,1758453379837,-151.05050986,0.00019178,2]
[386660580,1758453379861,-480.0,0.00019178,2]
[386660581,1758453379886,-480.0,0.00019178,2]
[386660582,1758453379909,-480.0,0.00019178,2]
[386660583,1758453379934,-480.0,0.00019178,2]
[386660584,1758453379957,-487.18333341,0.00019178,2]
[386660585,1758453379980,-480.0,0.00019178,2]
[386660586,1758453380004,-492.83429582,0.00019178,2]
[386660587,1758453380027,-485.45322914,0.00019178,2]
[386660588,1758453380055,-532.83,0.00019178,2]
[386660589,1758453380079,-480.0,0.00019178,2]
[386660590,1758453380103,-480.0,0.00019178,2]
[386660591,1758453380132,-480.0,0.00019178,2]
[386660592,1758453380157,-480.0,0.00019178,2]
[386660593,1758453380182,-480.0,0.00019178,2]
[386660594,1758453380207,-480.0,0.00019178,2]
[386660595,1758453380230,-480.0,0.00019178,2]
[386660596,1758453380253,-480.0,0.00019178,2]
[386660597,1758453380281,-626.76281771,0.00019178,2]
[386660598,1758453380306,-480.0,0.00019178,2]
[386660599,1758453380330,-480.0,0.00019178,2]
[386660600,1758453380354,-480.0,0.00019178,2]
[386660601,1758453380377,-480.0,0.00019178,2]
[386660602,1758453380401,-480.0,0.00019178,2]
[386660603,1758453380425,-480.0,0.00019178,2]
[386660604,1758453380449,-480.0,0.00019178,2]
[386660605,1758453380681,-480.0,0.00019178,2]
[386660606,1758453380708,-480.0,0.00019178,2]
[386660607,1758453380735,-480.0,0.00019178,2]
[386660608,1758453380759,-171.20862004,0.00019178,2]
[386660609,1758453380894,-480.0,0.00019178,2]
[386660610,1758453380920,-480.0,0.00019178,2]
[386660611,1758453380944,-480.0,0.00019178,2]
[386660612,1758453380970,-480.0,0.00019178,2]
[386660613,1758453380997,-874.96,0.00019178,2]
[386660614,1758453381022,-480.0,0.00019178,2]
[386660615,1758453381050,-480.0,0.00019178,2]
[386660616,1758453381076,-810.64,0.00019178,2]
[386660617,1758453381102,-480.0,0.00019178,2]
[386660618,1758453381132,-528.32595358,0.00019178,2]
[386660619,1758453381158,-480.0,0.00019178,2]
[386660620,1758453381182,-480.0,0.00019178,2]
[386660621,1758453381206,-152.93600181,0.00019178,2]
[386660622,1758453381230,-480.0,0.00019178,2]
[386660623,1758453381253,-480.0,0.00019178,2]
[386660624,1758453381277,-480.0,0.00019178,2]
[386660625,1758453381300,-486.52728749,0.00019178,2]
[386660626,1758453381324,-328.27767239,0.00019178,2]
[386660627,1758453381347,-480.0,0.00019178,2]
[386660628,1758453381372,-720.39,0.00019178,2]
[386660629,1758453381396,-480.0,0.00019178,2]
[386660630,1758453381420,-480.0,0.00019178,2]
[386660631,1758453381442,-480.0,0.00019178,2]
[386660632,1758453381466,-480.0,0.00019178,2]
[386660633,1758453381489,-480.0,0.00019178,2]
[386660634,1758453381513,-480.0,0.00019178,2]
[386660635,1758453381536,-282.96468399,0.00019178,2]
[386660636,1758453381561,-480.0,0.00019178,2]
[386660637,1758453381585,-480.0,0.00019178,2]
[386660638,1758453381610,-480.0,0.00019178,2]
[386660639,1758453381634,-480.0,0.00019178,2]
[386660640,1758453381658,-480.0,0.00019178,2]
[386660641,1758453381683,-500.0,0.00019178,2]
[386660642,1758453381709,-201.0,0.00019397,3]
[386660643,1758453381735,-453.43033567,0.00019452,2]
[386660644,1758453381760,-583.25694639,0.00019452,2]
[386660645,1758453381784,-480.0,0.00019452,2]
[386660646,1758453381810,-572.58388793,0.00019452,2]
[386660647,1758453381835,-480.0,0.00019452,2]